Cogmind - Beta 14 @@@ ROGUE MODE // 2024.09.10 @ 23:09:02 Player: Carpathian Result: Self-destructed Performance ------------- Evolutions (2) 1000 Regions Visited (3) 600 Robots Destroyed (26) 130 Value Destroyed (769) 769 Prototype IDs (0) 0 Alien Tech Used (0) 0 Bonus (19) 19 TOTAL SCORE: 2518 Bonus ------- High Alert Combat Kills 19 Cogmind --------- Core Integrity 536/550 Matter 152/300 Energy 265/265 System Corruption 0% Temperature Cool (0) Movement Walking (260) Ox2 Location -8/Materials Parts ------- > --- POWER (2) -------- Improved Ion Engine > --- PROPULSION (2) --- Aluminum Leg > --- UTILITY (5) ------ Medium Storage Unit Seismic Detector Reaction Control System Light Armor Plating > --- WEAPON (2) ------- Heavy Assault Rifle Shotgun > --- INVENTORY (10) --- Light Nuclear Core Armored Treads Insulated Plating Faulty Improved Medium Laser Improved Medium Laser Shotgun Shotgun EMP Blaster Grenade Launcher Heavy Hammer Peak State ------------ > --- POWER ------------ Improved Ion Engine > --- PROPULSION ------- Aluminum Leg Aluminum Leg > --- UTILITY ---------- Medium Storage Unit Seismic Detector Reaction Control System Light Armor Plating > --- WEAPON ----------- Shotgun Shotgun > --- INVENTORY -------- Light Nuclear Core Armored Treads Disposable Heat Sink Improved Medium Laser Improved Medium Laser Heavy Assault Rifle Shotgun Grenade Launcher Heavy Hammer [Rating: 16] Favorites ----------- Power Improved Ion Engine Engine Improved Ion Engine Propulsion Light Treads Treads Light Treads Leg Aluminum Leg Utility Medium Storage Unit Device Seismic Detector Storage Medium Storage Unit Processor Terrain Scan Processor Protection Light Armor Plating Weapon Shotgun Ballistic Gun Shotgun Ballistic Cannon Improved Light Cannon Build | -11 -10 -9 -8 ------- Run | Yrd Mat Mat Mat Slots Evolved 4 | . . 2 2 Power 1 | . . . 1 Propulsion . | . . . . Utility 3 | . . 2 1 Weapon . | . . . . Parts Attached 24 | 7 1 13 3 Power 5 | 2 . 3 . Engine 5 | 2 . 3 . Core . | . . . . Reactor . | . . . . Propulsion 4 | 2 . 2 . Treads 2 | 2 . . . Leg 2 | . . 2 . Wheel . | . . . . Hover . | . . . . Flight . | . . . . Utility 9 | 1 1 5 2 Device 3 | . 1 1 1 Storage 3 | 1 . 2 . Processor 1 | . . . 1 Hackware . | . . . . Protection 2 | . . 2 . Artifact . | . . . . Weapon 6 | 2 . 3 1 Energy Gun . | . . . . Energy Cannon . | . . . . Ballistic Gun 5 | 2 . 2 1 Ballistic Cannon 1 | . . 1 . Launcher . | . . . . Special Weapon . | . . . . Impact Weapon . | . . . . Slashing Weapon . | . . . . Piercing Weapon . | . . . . Special Melee Weapon . | . . . . Unidentified Prototypes . | . . . . Parts Lost 2 | . . 1 1 Power 1 | . . 1 . Propulsion 1 | . . . 1 Utility . | . . . . Weapon . | . . . . Highest Loss Streak 1 | . . 1 1 To Critical Strikes . | . . . . Average Slot Usage (%) 82 | . 86 83 78 Engine 10 | . 14 11 9 Treads 11 | . 28 14 . Leg 9 | . . 7 17 Device 12 | . 1 12 16 Storage 10 | . 14 11 9 Protection 5 | . . 4 9 Ballistic Gun 19 | . 28 17 18 Ballistic Cannon 2 | . . 4 . Peak Build Rating 16 | 6 9 14 16 Average Rating 11 | 3 6 11 15 On Entrance 7 | . 6 9 13 Naked Turns . | . . . . Heaviest Build 28 | 12 13 27 28 Greatest Support 40 | 40 40 40 20 Greatest Overweight (x) 2 | . . 1 2 Average Overweight (x) . | . . . 1 Largest Inventory Capacity 10 | 8 8 10 10 Average Capacity 9 | 6 8 9 10 Most Carried 10 | 5 6 10 10 Average Carried 7 | 3 4 7 9 Final Capacity 10 | 8 8 10 10 Final Carried 10 | 3 5 10 10 Class Distribution -------------------- 100% | Mutant Dominant Class ---------------- Mutant | -10/Materials Mutant | -9/Materials Mutant | -8/Materials Resources | -11 -10 -9 -8 ----------- Run | Yrd Mat Mat Mat Matter Collected 775 | 202 58 402 113 Remotely . | . . . . Salvage Created 792 | . 101 477 214 Parts 57 | . 5 34 18 Haulers Intercepted 2 | . . 1 1 Recyclers Shooed 1 | . . . 1 Parts Field Recycled . | . . . . Retrieved Matter . | . . . . Parts Self-Destructed . | . . . . Prevented . | . . . . Kills | -11 -10 -9 -8 ------- Run | Yrd Mat Mat Mat Combat Hostiles Destroyed 23 | . 2 17 4 Guns 17 | . 2 11 4 Cannons 5 | . . 5 . AOE 1 | . . 1 . Classes Destroyed 6 | . 1 3 2 Builder 1 | . . . 1 Hauler 2 | . . 1 1 Swarmer 7 | . . 7 . Grunt 9 | . 2 6 1 Sentry 6 | . . 4 2 Hunter 1 | . . . 1 Best Kill Streak 4 | . 1 4 2 Combat Bots Only 4 | . 1 4 1 Max Kills in Single Turn 1 | . 1 1 1 Gunslinging . | . . . . Exploded 1 | . . 1 . Melee . | . . . . Uniques/NPCs Destroyed . | . . . . Combat | -11 -10 -9 -8 -------- Run | Yrd Mat Mat Mat Hostile Shots Fired 136 | . 23 76 37 Missed 41 | . 4 25 12 Damage Taken 1362 | . 252 725 385 Core 214 | . 88 112 14 Absorbed by Shields . | . . . . Core Remaining (%) 78 | 100 64 72 . Volleys Fired 82 | . 20 35 27 Largest 2 | . 2 2 2 Hottest 62 | . 40 62 46 Shots Fired 164 | . 40 70 54 Gun 146 | . 40 52 54 Cannon 18 | . . 18 . Launcher . | . . . . Special . | . . . . Kinetic 164 | . 40 70 54 Thermal . | . . . . Explosive . | . . . . Electromagnetic . | . . . . Robot Hit Streak 10 | . 10 7 6 Robot Miss Streak 5 | . 2 5 3 Penetration Max . | . . . . Secondary Targets 1 | . . 1 . Max Gunslinging Chain 1 | . . 1 . Shots Hit Robots 118 | . 27 49 42 Core Hits 51 | . 6 28 17 Critical Kills . | . . . . Critical Parts Destroyed . | . . . . Critical Strikes . | . . . . Melee Attacks . | . . . . Impact . | . . . . Slashing . | . . . . Piercing . | . . . . Sneak Attacks . | . . . . Combat Hostiles . | . . . . Follow-up Attacks . | . . . . Damage Inflicted 1538 | . 213 797 528 Guns 1152 | . 213 411 528 Cannons 296 | . . 296 . Explosions 90 | . . 90 . Melee . | . . . . Ramming . | . . . . Kinetic 1448 | . 213 707 528 Thermal 90 | . . 90 . Explosive . | . . . . Electromagnetic . | . . . . Impact . | . . . . Slashing . | . . . . Piercing . | . . . . Highest Corruption . | . . . . Average Corruption . | . . . . Corruption Purged . | . . . . Corruption Blocked . | . . . . Overload Shots . | . . . . Overflow Damage . | . . . . Projectiles . | . . . . Explosions . | . . . . Melee . | . . . . Knockbacks 5 | . . 5 . Impact . | . . . . Kinetic 4 | . . 4 . Secondary 1 | . . 1 . Self-Inflicted Damage 160 | . . 160 . Shots 2 | . . 2 . Rammed . | . . . . Targets Rammed . | . . . . Kicked . | . . . . Crushed . | . . . . Highest Temperature 23 | . 18 23 2 Average Temperature 8 | . 9 5 2 Received Heat Transfer 399 | . 141 195 63 Siege Activations . | . . . . Robots Corrupted . | . . . . Combat Hostiles . | . . . . Parts Fried . | . . . . Impact Corruptions . | . . . . Robots Melted . | . . . . Combat Hostiles . | . . . . Parts Melted . | . . . . Heat Transferred 50 | . . 50 . Parts Sabotaged . | . . . . Parts Stolen . | . . . . Parts Stripped . | . . . . Power Chain Reactions . | . . . . Alert | -11 -10 -9 -8 ------- Run | Yrd Mat Mat Mat Peak Influence 446 | . 65 446 196 Initial 124 | . . 27 124 Average 154 | . 13 226 130 Maximum Alert Level 2 | . . 2 . Low Security (%) 72 | 100 100 43 100 Level 1 18 | . . 36 . Level 2 9 | . . 19 . Level 3 . | . . . . Level 4 . | . . . . Level 5 . | . . . . High Security . | . . . . Max Security . | . . . . Squads Dispatched 1 | . . 1 . Investigation . | . . . . Extermination . | . . . . Reinforcement 1 | . . 1 . Assault . | . . . . Garrison . | . . . . Intercept . | . . . . Searches Triggered . | . . . . Construction Impeded . | . . . . Haulers Reinforced . | . . . . Active Scanning Responses . | . . . . Cargo Convoy Interrupts . | . . . . Stealth | -11 -10 -9 -8 --------- Run | Yrd Mat Mat Mat Distress Signals 3 | . . 3 . Communications Jammed . | . . . . Distress Signals . | . . . . Times Spotted 28 | . 2 22 4 Peak Tracking Total 5 | . 1 5 2 Tactical Retreats 1 | . . 1 . Traps | -11 -10 -9 -8 ------- Run | Yrd Mat Mat Mat Traps Triggered . | . . . . Indirectly . | . . . . Trap Hack Attempts . | . . . . Triggered . | . . . . Disarmed . | . . . . Reprogrammed . | . . . . Reused . | . . . . Traps Extracted . | . . . . Installed . | . . . . Triggered . | . . . . Machines | -11 -10 -9 -8 ---------- Run | Yrd Mat Mat Mat Machines Disabled 2 | . . 2 . Max in Single Turn 2 | . . 2 . Machines Repaired . | . . . . Machines Dismantled . | . . . . Machines Sabotaged . | . . . . Overloaded Fab Kills . | . . . . Hacking | -11 -10 -9 -8 --------- Run | Yrd Mat Mat Mat Machines Accessed 1 | . . 1 . Terminals 1 | . . 1 . Fabricators . | . . . . Repair Stations . | . . . . Recycling Units . | . . . . Scanalyzers . | . . . . Garrison Access . | . . . . Total Hacks 1 | . . 1 . Successful 1 | . . 1 . Failed . | . . . . Catastrophic . | . . . . Database Lockouts . | . . . . Manual . | . . . . Terminals 1 | . . 1 . Fabricators . | . . . . Repair Stations . | . . . . Recycling Units . | . . . . Scanalyzers . | . . . . Garrison Access . | . . . . Terminal Hacks 1 | . . 1 . Zone Layout 1 | . . 1 . Fabricator Hacks . | . . . . Repair Station Hacks . | . . . . Recycling Unit Hacks . | . . . . Scanalyzer . | . . . . Garrison Access Hacks . | . . . . Unauthorized Hacks . | . . . . Terminals . | . . . . Fabricators . | . . . . Repair Stations . | . . . . Recycling Units . | . . . . Scanalyzers . | . . . . Garrison Access . | . . . . Data Cores Recovered . | . . . . Used . | . . . . Hacking Detections . | . . . . Full Trace Events . | . . . . Feedback Events . | . . . . Feedback Blocked . | . . . . Robot Schematics Acquired . | . . . . Robots Built . | . . . . Authchips . | . . . . Time . | . . . . Total Robot Build Rating . | . . . . Part Schematics Acquired . | . . . . Parts Built . | . . . . Authchips . | . . . . Time . | . . . . Total Part Build Rating . | . . . . Parts Repaired . | . . . . Time . | . . . . Parts Recycled . | . . . . Recycled Matter . | . . . . Retrieved Matter . | . . . . Retrieved Components . | . . . . Parts Scanalyzed . | . . . . Part Schematics Acquired . | . . . . Parts Damaged . | . . . . Bothacking | -11 -10 -9 -8 ------------ Run | Yrd Mat Mat Mat Used RIF Installer . | . . . . Robots Hacked . | . . . . Non-combat . | . . . . Combat . | . . . . Robot Hacks Applied . | . . . . Relay Couplers Released . | . . . . Fabnet Peak Effective % . | . . . . Robots Rewired . | . . . . Allies Hacked . | . . . . Hacks Repelled . | . . . . Allies | -11 -10 -9 -8 -------- Run | Yrd Mat Mat Mat Total Allies . | . . . . Largest Group . | . . . . Highest-Rated Group . | . . . . Highest-Rated Ally . | . . . . Total Orders . | . . . . Ally Attacks . | . . . . Total Damage . | . . . . Kills . | . . . . Allies Corrupted . | . . . . Allies Melted . | . . . . Intel | -11 -10 -9 -8 ------- Run | Yrd Mat Mat Mat Robot Analysis Total . | . . . . Derelict Logs Recovered . | . . . . Drone Launches . | . . . . Drone Recoveries . | . . . . Exploration | -11 -10 -9 -8 ------------- Run | Yrd Mat Mat Mat Turns Passed 1779 | 88 268 883 540 Spaces Moved 811 | 60 133 391 227 Core 21 | 21 . . . Treads 411 | 39 133 239 . Legs 379 | . . 152 227 Wheels . | . . . . Hover . | . . . . Flight . | . . . . Fastest Speed 50 | 50 160 160 190 Average Speed 172 | 121 160 171 195 Slowest Speed 260 | 160 160 190 260 Overloaded Moves . | . . . . Propulsion Burnouts . | . . . . Robots Hopped . | . . . . Cave-ins Triggered . | . . . . Exploration Rate (%) 17 | 4 20 29 18 Regions Visited 3 Branch Regions . Pre-discovered Areas . | . . . . Known Exits Taken . | . . . . Unknown Exits Taken 3 | 1 1 1 . Scrap Searched . | . . . . Spaces Dug . | . . . . Terrain Destroyed 43 | . . 43 . Melee . | . . . . Projectile 1 | . . 1 . AOE 42 | . . 42 . Terrain Rammed . | . . . . Walls Destroyed . | . . . . Machines Disabled . | . . . . Actions | -11 -10 -9 -8 --------- Run | Yrd Mat Mat Mat Total 1037 | 74 156 537 270 Wait 76 | . . 70 6 Move 808 | 59 132 390 227 Hop . | . . . . Pick Up 33 | 8 3 18 4 Fast Attach 1 | 1 . . . Attach 12 | 5 1 4 2 Detach 1 | . . . 1 Swap 11 | 1 . 9 1 Drop 13 | . . 11 2 Fire 82 | . 20 35 27 Melee . | . . . . Ram . | . . . . Kick . | . . . . Crush . | . . . . Escape Stasis . | . . . . Rewire . | . . . . Trap . | . . . . Miscellaneous . | . . . . Route ------- -11/Scrapyard -10/Materials -9/Materials -8/Materials History --------- Turn | Location | Event 6 | -11/Scrapyard | Discovered new exit (range 15) 89 | -11/Scrapyard | Entered Materials 282 | -10/Materials | Discovered new exit (range 15) 318 | -10/Materials | Build established: Mutant 357 | -10/Materials | Entered another Materials area 357 | -9/Materials | Evolved 2 slots: Utility x2 1155 | -9/Materials | Discovered new exit (range 13) 1240 | -9/Materials | Entered another Materials area 1240 | -8/Materials | Evolved 2 slots: Power x1, Utility x1 1780 | -8/Materials | Self-destructed Last Messages --------------- 01310_ Acquired 35 matter. 01318_ A-02 Transporter destroyed. 01323_ Acquired 39 matter. 01346_ Acquired Reaction Control System. 01436_ Acquired EMP Blaster. 01478_ Dropped Disposable Heat Sink. 01483_ Acquired Insulated Plating. 01503_ Atomic Centrifuge disabled. 01504_ Y-45 Defender destroyed. 01671_ K-01 Serf collects debris. 01684_ Y-45 Defender destroyed. 01687_ K-01 Serf collects debris. 01697_ Penetrated by Slug. 01721_ Slug penetrates Wall. 01721_ Aluminum Leg destroyed. 01723_ H-55 Commando destroyed. 01734_ Acquired 18 matter. 01739_ U-05 Engineer destroyed. 01742_ Acquired 21 matter. 01752_ R-06 Scavenger collects Welding Torch. Map ----- +----------------------------------------------------+ | ?????????????????????????????????????? ??????? | | ??????????????????????????????????????? ??????? | | ???????????????????????????????????????# ??????? | | ???????????????????????????????????????# ??????? | | ???????????????????????????????????????# ??????? | | ???????????????????????????????????????# #####?? | | ???????????????????????????????????????# #?? | | ???????????????????????????????????????# #?? | | ???????????????????????????????????????# #?? | | ???????????????????????????????????????####+#####? | | ???????????????????????????????????????# #? | | ???????????????????????????????????????# """ #? | | ???????????????????????????????????????# """ #? | | ???????????????????????????????????????# """ #? | | ???????????????????????????????????????# =#? | | ???????????????????????????????????????# """ ## | | ????????????????????????????#########??# """ ## | | ????????????????????????????# #??# """ ## | | ????????????????????????????# #??# ## | | ????????????????????????????# #??#######+### | | ???????????????????########## #?######?#%#?# | | ??????????????????? ## ! #?# ##*### | | ???????????????????""" """ #####+###### = =*# | | ?????????????????" """ """ + = ==! + | | ???????????????""" """ """ #####*###### # | | ?????????????+ @ #???# #????# ### ## | | ?????????????# = [ [ #???# #????######??# ## | | ?????????????###############???# #????????????# ## | | ???????????????????????######### #????????? ### ## | | ???????????????????????# + #??????? + + | | ???????????????????????# = # #????? # # | | ???????????????????????# !%* # ##?? # # | | ???????????????????????# [""" ?# # + # | | ??????????????????????# """ ?# + ### + | | ??????????????????????##[ """??+ # #?# # | | ???????????????????????# ??# #?? #?# # | | ????????????????????????? ""???# #########+### # | | ????????????????????????? ""???+ # | | ???????????????????????????????# + | | ???????????????????????????????##### =! ###### | | ???????????????????????########????# == #????? | | ???????????????????????# #????# #??### | | ???????????????????????#! """ ###### ] #### " | | ???????????????????????# """ + ^^ # " | | ???????????????????????# """ # ^ ! # " | | ???????????????????????# # ^ + | | ???????????????????????# """ # ####+####### # | | ???????????????????????#! """ # # #?# # | | ???????????????????????# """ # + """""#?###### | | ???????????????????????# + #! """""#??????? | +----------------------------------------------------+ Best States ------------- Heat Dissipation 42 Energy Generation 12 Energy Capacity 265 Matter Stores 300 Matter Capacity 300 Sight Range 16 Terrain Scan Density 10 Armor Coverage 150 Evasion (%) 50 Recoil Reduction 2 Item Schematics ----------------- None Robot Schematics ------------------ None Fabricated ------------ Nothing Alien Tech Used ----------------- None Achievements -------------- None Challenges ------------ None Game ------ Seed PhysicsMiningCleaver Manual? 0 Play Time 00:14:25 Cumulative 20.4 hours Start 2024.09.10 @ 22:57:18 End 2024.09.10 @ 23:09:02 Sessions 1 Manual Loads 0 Difficulty Rogue Special Mode None Game No. 116 Rogue 116 Adventurer 0 Explorer 0 Win Type - Total 0 Types 0/0/0/0/0/0/0/0/0 Lore% 4 Gallery% 21 Achievement% 16 Wizard Run 0 Options --------- Layout 0 ASCII 0 Keyboard 0 Movement Mouse Keybinds 0 Fullscreen 2 Font 24/Cog Map View 76x50 Zoom Use 0% Tactical HUD 1 Map Filters NONE Filters NONE Steam 1 RUN: 58bed3e0-217b-4f92-9f77-7ffc6e6bf1e3